{"text_format":"3","workbook":"xlsx","n_sheets":2,"sheets":["Seguimiento de pérdida de peso","cálculos"],"not_rendered":{"charts":1,"defined_names":10},"read":"whole","date_system":"1900"}

{"sheet":"Seguimiento de pérdida de peso","index":0,"n_rows":19,"n_cols":9,"rows_kept":19,"merged":[[0,3,0,7],[0,8,0,9],[1,3,2,9]]}
[null,"PESO OBJETIVO","VISTA GRÁFICO","Madison Butler",{"$nulls":4},"PÉRDIDA DE PESO"]
[{"$nulls":3},"SEGUIMIENTO"]
[null,{"v":172,"d":"172.0"},"SEMANAL"]
[null,"MOSTRAR PESO OBJETIVO","Sí"]
[null,"El gráfico de seguimiento de peso que realiza un seguimiento del peso actual se encuentra en esta celda. Seleccione \"Sí\" en la celda C4 para mostrar la línea de Peso objetivo sobre el gráfico de área."]
[]
[null,"FECHA","PESO"]
[null,{"$f":"TODAY()-77","v":"2023-01-12"},{"v":176,"d":"176.0"}]
[null,{"$f":"TODAY()-70","v":"2023-01-19"},{"v":176,"d":"176.0"}]
[null,{"$f":"TODAY()-63","v":"2023-01-26"},177.6]
[null,{"$f":"TODAY()-56","v":"2023-02-02"},176.5]
[null,{"$f":"TODAY()-49","v":"2023-02-09"},176.1]
[null,{"$f":"TODAY()-42","v":"2023-02-16"},{"v":174,"d":"174.0"}]
[null,{"$f":"TODAY()-35","v":"2023-02-23"},173.5]
[null,{"$f":"TODAY()-28","v":"2023-03-02"},{"v":173,"d":"173.0"}]
[null,{"$f":"TODAY()-21","v":"2023-03-09"},{"v":172,"d":"172.0"}]
[null,{"$f":"TODAY()-14","v":"2023-03-16"},{"v":172,"d":"172.0"}]
[null,{"$f":"TODAY()-7","v":"2023-03-23"},{"v":173,"d":"173.0"}]
[null,{"$f":"TODAY()","v":"2023-03-30"},{"v":172,"d":"172.0"}]

{"sheet":"cálculos","index":1,"n_rows":107,"n_cols":17,"rows_kept":107,"hidden":true}
["*** Esta hoja debe permanecer oculta ***"]
[]
[{"$f":"COUNTIF(A5:A107,FALSE)","v":12},"Períodos","Valores",{"$nulls":3},{"$f":"COUNTIF(H5:H28,\">\"&0)","v":3},"Períodos",null,"Valores"]
[null,"Semana",null,null,{"$f":"IFERROR(IF(MostrarPesoObjetivo=\"Sí\", TRUE, FALSE),FALSE)","v":true},null,null,"Mes","EOM"]
[{"$f":"FALSE","v":false},{"$f":"IFERROR(IF(LEN('Seguimiento de pérdida de peso'!$B8)=0,TODAY(),'Seguimiento de pérdida de peso'!$B8),TODAY())","v":"2023-01-12"},{"$f":"IFERROR(IF(LEN('Seguimiento de pérdida de peso'!$C8)=0,PesoObjetivo,'Seguimiento de pérdida de peso'!$C8),0)","v":176},{"$f":"IFERROR(IF(MIN(PeriodosGráfico)=0,TODAY(),MIN(PeriodosGráfico)),TODAY())","v":"2023-01-12"},{"$f":"IFERROR(IF($A$5,0,IF($E$4,PesoObjetivo,NA())),0)","v":172},null,null,{"$f":"IFERROR(IF($A$5,TODAY(),DATE(YEAR($B5),MONTH($B5),1)),\"\")","v":"2023-01-01"},{"$f":"IFERROR(IF($A$5,TODAY(),EOMONTH($H5,0)),\"\")","v":"2023-01-31"},{"$f":"IFERROR(IF($A$5,0,AVERAGEIFS(Peso[PESO],Peso[FECHA],\">=\"&$H5,Peso[FECHA],\"<=\"&$I5)),NA())","v":176.53333333333333}]
[{"$f":"IF((LEN('Seguimiento de pérdida de peso'!$C9)=0),TRUE)","v":false},{"$f":"IFERROR(IF(LEN('Seguimiento de pérdida de peso'!$B9)=0,TODAY(),'Seguimiento de pérdida de peso'!$B9),TODAY())","v":"2023-01-19"},{"$f":"IFERROR(IF(A6,0,IF(LEN('Seguimiento de pérdida de peso'!$C9)=0,0,'Seguimiento de pérdida de peso'!$C9)),\"\")","v":176},{"$f":"IFERROR(IF(MIN(PeriodosGráfico)=0,TODAY(),MIN(PeriodosGráfico)),TODAY())","v":"2023-01-12"},{"$f":"IFERROR(IF($A$5,0,IF($E$4,PesoObjetivo,NA())),0)","v":172},null,null,{"$f":"IF($I5+1>MAX($B:$B),NA(),$I5+1)","v":"2023-02-01"},{"$f":"EOMONTH($H6,0)","v":"2023-02-28"},{"$f":"IFERROR(AVERAGEIFS(Peso[PESO],Peso[FECHA],\">=\"&$H6,Peso[FECHA],\"<=\"&$I6),NA())","v":175.025}]
[{"$f":"IF((LEN('Seguimiento de pérdida de peso'!$C10)=0),TRUE)","v":false},{"$f":"IFERROR(IF(LEN('Seguimiento de pérdida de peso'!$B10)=0,TODAY(),'Seguimiento de pérdida de peso'!$B10),TODAY())","v":"2023-01-26"},{"$f":"IFERROR(IF(A7,0,IF(LEN('Seguimiento de pérdida de peso'!$C10)=0,0,'Seguimiento de pérdida de peso'!$C10)),\"\")","v":177.6},{"$nulls":4},"2023-03-01","2023-03-31",{"$f":"IFERROR(AVERAGEIFS(Peso[PESO],Peso[FECHA],\">=\"&$H7,Peso[FECHA],\"<=\"&$I7),NA())","v":172.4}]
[{"$f":"IF((LEN('Seguimiento de pérdida de peso'!$C11)=0),TRUE)","v":false},{"$f":"IFERROR(IF(LEN('Seguimiento de pérdida de peso'!$B11)=0,TODAY(),'Seguimiento de pérdida de peso'!$B11),TODAY())","v":"2023-02-02"},{"$f":"IFERROR(IF(A8,0,IF(LEN('Seguimiento de pérdida de peso'!$C11)=0,0,'Seguimiento de pérdida de peso'!$C11)),\"\")","v":176.5},{"$nulls":4},{"$error":"#N/A"},{"$error":"#N/A"},{"$f":"IFERROR(AVERAGEIFS(Peso[PESO],Peso[FECHA],\">=\"&$H8,Peso[FECHA],\"<=\"&$I8),NA())","v":{"$error":"#N/A"}}]
[{"$f":"IF((LEN('Seguimiento de pérdida de peso'!$C12)=0),TRUE)","v":false},{"$f":"IFERROR(IF(LEN('Seguimiento de pérdida de peso'!$B12)=0,TODAY(),'Seguimiento de pérdida de peso'!$B12),TODAY())","v":"2023-02-09"},{"$f":"IFERROR(IF(A9,0,IF(LEN('Seguimiento de pérdida de peso'!$C12)=0,0,'Seguimiento de pérdida de peso'!$C12)),\"\")","v":176.1},{"$nulls":4},{"$error":"#N/A"},{"$error":"#N/A"},{"$f":"IFERROR(AVERAGEIFS(Peso[PESO],Peso[FECHA],\">=\"&$H9,Peso[FECHA],\"<=\"&$I9),NA())","v":{"$error":"#N/A"}}]
[{"$f":"IF((LEN('Seguimiento de pérdida de peso'!$C13)=0),TRUE)","v":false},{"$f":"IFERROR(IF(LEN('Seguimiento de pérdida de peso'!$B13)=0,TODAY(),'Seguimiento de pérdida de peso'!$B13),TODAY())","v":"2023-02-16"},{"$f":"IFERROR(IF(A10,0,IF(LEN('Seguimiento de pérdida de peso'!$C13)=0,0,'Seguimiento de pérdida de peso'!$C13)),\"\")","v":174},{"$nulls":4},{"$error":"#N/A"},{"$error":"#N/A"},{"$f":"IFERROR(AVERAGEIFS(Peso[PESO],Peso[FECHA],\">=\"&$H10,Peso[FECHA],\"<=\"&$I10),NA())","v":{"$error":"#N/A"}}]
[{"$f":"IF((LEN('Seguimiento de pérdida de peso'!$C14)=0),TRUE)","v":false},{"$f":"IFERROR(IF(LEN('Seguimiento de pérdida de peso'!$B14)=0,TODAY(),'Seguimiento de pérdida de peso'!$B14),TODAY())","v":"2023-02-23"},{"$f":"IFERROR(IF(A11,0,IF(LEN('Seguimiento de pérdida de peso'!$C14)=0,0,'Seguimiento de pérdida de peso'!$C14)),\"\")","v":173.5},{"$nulls":4},{"$error":"#N/A"},{"$error":"#N/A"},{"$f":"IFERROR(AVERAGEIFS(Peso[PESO],Peso[FECHA],\">=\"&$H11,Peso[FECHA],\"<=\"&$I11),NA())","v":{"$error":"#N/A"}},{"$nulls":6},{"$f":"MAX($B:$B)","v":"2023-03-30"}]
[{"$f":"IF((LEN('Seguimiento de pérdida de peso'!$C15)=0),TRUE)","v":false},{"$f":"IFERROR(IF(LEN('Seguimiento de pérdida de peso'!$B15)=0,TODAY(),'Seguimiento de pérdida de peso'!$B15),TODAY())","v":"2023-03-02"},{"$f":"IFERROR(IF(A12,0,IF(LEN('Seguimiento de pérdida de peso'!$C15)=0,0,'Seguimiento de pérdida de peso'!$C15)),\"\")","v":173},{"$nulls":4},{"$error":"#N/A"},{"$error":"#N/A"},{"$f":"IFERROR(AVERAGEIFS(Peso[PESO],Peso[FECHA],\">=\"&$H12,Peso[FECHA],\"<=\"&$I12),NA())","v":{"$error":"#N/A"}}]
[{"$f":"IF((LEN('Seguimiento de pérdida de peso'!$C16)=0),TRUE)","v":false},{"$f":"IFERROR(IF(LEN('Seguimiento de pérdida de peso'!$B16)=0,TODAY(),'Seguimiento de pérdida de peso'!$B16),TODAY())","v":"2023-03-09"},{"$f":"IFERROR(IF(A13,0,IF(LEN('Seguimiento de pérdida de peso'!$C16)=0,0,'Seguimiento de pérdida de peso'!$C16)),\"\")","v":172},{"$nulls":4},{"$error":"#N/A"},{"$error":"#N/A"},{"$f":"IFERROR(AVERAGEIFS(Peso[PESO],Peso[FECHA],\">=\"&$H13,Peso[FECHA],\"<=\"&$I13),NA())","v":{"$error":"#N/A"}}]
[{"$f":"IF((LEN('Seguimiento de pérdida de peso'!$C17)=0),TRUE)","v":false},{"$f":"IFERROR(IF(LEN('Seguimiento de pérdida de peso'!$B17)=0,TODAY(),'Seguimiento de pérdida de peso'!$B17),TODAY())","v":"2023-03-16"},{"$f":"IFERROR(IF(A14,0,IF(LEN('Seguimiento de pérdida de peso'!$C17)=0,0,'Seguimiento de pérdida de peso'!$C17)),\"\")","v":172},{"$nulls":4},{"$error":"#N/A"},{"$error":"#N/A"},{"$f":"IFERROR(AVERAGEIFS(Peso[PESO],Peso[FECHA],\">=\"&$H14,Peso[FECHA],\"<=\"&$I14),NA())","v":{"$error":"#N/A"}}]
[{"$f":"IF((LEN('Seguimiento de pérdida de peso'!$C18)=0),TRUE)","v":false},{"$f":"IFERROR(IF(LEN('Seguimiento de pérdida de peso'!$B18)=0,TODAY(),'Seguimiento de pérdida de peso'!$B18),TODAY())","v":"2023-03-23"},{"$f":"IFERROR(IF(A15,0,IF(LEN('Seguimiento de pérdida de peso'!$C18)=0,0,'Seguimiento de pérdida de peso'!$C18)),\"\")","v":173},{"$nulls":4},{"$error":"#N/A"},{"$error":"#N/A"},{"$f":"IFERROR(AVERAGEIFS(Peso[PESO],Peso[FECHA],\">=\"&$H15,Peso[FECHA],\"<=\"&$I15),NA())","v":{"$error":"#N/A"}}]
[{"$f":"IF((LEN('Seguimiento de pérdida de peso'!$C19)=0),TRUE)","v":false},{"$f":"IFERROR(IF(LEN('Seguimiento de pérdida de peso'!$B19)=0,TODAY(),'Seguimiento de pérdida de peso'!$B19),TODAY())","v":"2023-03-30"},{"$f":"IFERROR(IF(A16,0,IF(LEN('Seguimiento de pérdida de peso'!$C19)=0,0,'Seguimiento de pérdida de peso'!$C19)),\"\")","v":172},{"$nulls":4},{"$error":"#N/A"},{"$error":"#N/A"},{"$f":"IFERROR(AVERAGEIFS(Peso[PESO],Peso[FECHA],\">=\"&$H16,Peso[FECHA],\"<=\"&$I16),NA())","v":{"$error":"#N/A"}}]
[{"$f":"IF((LEN('Seguimiento de pérdida de peso'!$C20)=0),TRUE)","v":true},{"$f":"IFERROR(IF(LEN('Seguimiento de pérdida de peso'!$B20)=0,TODAY(),'Seguimiento de pérdida de peso'!$B20),TODAY())","v":"2023-03-30"},{"$f":"IFERROR(IF(A17,0,IF(LEN('Seguimiento de pérdida de peso'!$C20)=0,0,'Seguimiento de pérdida de peso'!$C20)),\"\")","v":0},{"$nulls":4},{"$error":"#N/A"},{"$error":"#N/A"},{"$f":"IFERROR(AVERAGEIFS(Peso[PESO],Peso[FECHA],\">=\"&$H17,Peso[FECHA],\"<=\"&$I17),NA())","v":{"$error":"#N/A"}}]
[{"$f":"IF((LEN('Seguimiento de pérdida de peso'!$C21)=0),TRUE)","v":true},{"$f":"IFERROR(IF(LEN('Seguimiento de pérdida de peso'!$B21)=0,TODAY(),'Seguimiento de pérdida de peso'!$B21),TODAY())","v":"2023-03-30"},{"$f":"IFERROR(IF(A18,0,IF(LEN('Seguimiento de pérdida de peso'!$C21)=0,0,'Seguimiento de pérdida de peso'!$C21)),\"\")","v":0},{"$nulls":4},{"$error":"#N/A"},{"$error":"#N/A"},{"$f":"IFERROR(AVERAGEIFS(Peso[PESO],Peso[FECHA],\">=\"&$H18,Peso[FECHA],\"<=\"&$I18),NA())","v":{"$error":"#N/A"}}]
[{"$f":"IF((LEN('Seguimiento de pérdida de peso'!$C22)=0),TRUE)","v":true},{"$f":"IFERROR(IF(LEN('Seguimiento de pérdida de peso'!$B22)=0,TODAY(),'Seguimiento de pérdida de peso'!$B22),TODAY())","v":"2023-03-30"},{"$f":"IFERROR(IF(A19,0,IF(LEN('Seguimiento de pérdida de peso'!$C22)=0,0,'Seguimiento de pérdida de peso'!$C22)),\"\")","v":0},{"$nulls":4},{"$error":"#N/A"},{"$error":"#N/A"},{"$f":"IFERROR(AVERAGEIFS(Peso[PESO],Peso[FECHA],\">=\"&$H19,Peso[FECHA],\"<=\"&$I19),NA())","v":{"$error":"#N/A"}}]
[{"$f":"IF((LEN('Seguimiento de pérdida de peso'!$C23)=0),TRUE)","v":true},{"$f":"IFERROR(IF(LEN('Seguimiento de pérdida de peso'!$B23)=0,TODAY(),'Seguimiento de pérdida de peso'!$B23),TODAY())","v":"2023-03-30"},{"$f":"IFERROR(IF(A20,0,IF(LEN('Seguimiento de pérdida de peso'!$C23)=0,0,'Seguimiento de pérdida de peso'!$C23)),\"\")","v":0},{"$nulls":4},{"$error":"#N/A"},{"$error":"#N/A"},{"$f":"IFERROR(AVERAGEIFS(Peso[PESO],Peso[FECHA],\">=\"&$H20,Peso[FECHA],\"<=\"&$I20),NA())","v":{"$error":"#N/A"}}]
[{"$f":"IF((LEN('Seguimiento de pérdida de peso'!$C24)=0),TRUE)","v":true},{"$f":"IFERROR(IF(LEN('Seguimiento de pérdida de peso'!$B24)=0,TODAY(),'Seguimiento de pérdida de peso'!$B24),TODAY())","v":"2023-03-30"},{"$f":"IFERROR(IF(A21,0,IF(LEN('Seguimiento de pérdida de peso'!$C24)=0,0,'Seguimiento de pérdida de peso'!$C24)),\"\")","v":0},{"$nulls":4},{"$error":"#N/A"},{"$error":"#N/A"},{"$f":"IFERROR(AVERAGEIFS(Peso[PESO],Peso[FECHA],\">=\"&$H21,Peso[FECHA],\"<=\"&$I21),NA())","v":{"$error":"#N/A"}}]
[{"$f":"IF((LEN('Seguimiento de pérdida de peso'!$C25)=0),TRUE)","v":true},{"$f":"IFERROR(IF(LEN('Seguimiento de pérdida de peso'!$B25)=0,TODAY(),'Seguimiento de pérdida de peso'!$B25),TODAY())","v":"2023-03-30"},{"$f":"IFERROR(IF(A22,0,IF(LEN('Seguimiento de pérdida de peso'!$C25)=0,0,'Seguimiento de pérdida de peso'!$C25)),\"\")","v":0},{"$nulls":4},{"$error":"#N/A"},{"$error":"#N/A"},{"$f":"IFERROR(AVERAGEIFS(Peso[PESO],Peso[FECHA],\">=\"&$H22,Peso[FECHA],\"<=\"&$I22),NA())","v":{"$error":"#N/A"}}]
[{"$f":"IF((LEN('Seguimiento de pérdida de peso'!$C26)=0),TRUE)","v":true},{"$f":"IFERROR(IF(LEN('Seguimiento de pérdida de peso'!$B26)=0,TODAY(),'Seguimiento de pérdida de peso'!$B26),TODAY())","v":"2023-03-30"},{"$f":"IFERROR(IF(A23,0,IF(LEN('Seguimiento de pérdida de peso'!$C26)=0,0,'Seguimiento de pérdida de peso'!$C26)),\"\")","v":0},{"$nulls":4},{"$error":"#N/A"},{"$error":"#N/A"},{"$f":"IFERROR(AVERAGEIFS(Peso[PESO],Peso[FECHA],\">=\"&$H23,Peso[FECHA],\"<=\"&$I23),NA())","v":{"$error":"#N/A"}}]
[{"$f":"IF((LEN('Seguimiento de pérdida de peso'!$C27)=0),TRUE)","v":true},{"$f":"IFERROR(IF(LEN('Seguimiento de pérdida de peso'!$B27)=0,TODAY(),'Seguimiento de pérdida de peso'!$B27),TODAY())","v":"2023-03-30"},{"$f":"IFERROR(IF(A24,0,IF(LEN('Seguimiento de pérdida de peso'!$C27)=0,0,'Seguimiento de pérdida de peso'!$C27)),\"\")","v":0},{"$nulls":4},{"$error":"#N/A"},{"$error":"#N/A"},{"$f":"IFERROR(AVERAGEIFS(Peso[PESO],Peso[FECHA],\">=\"&$H24,Peso[FECHA],\"<=\"&$I24),NA())","v":{"$error":"#N/A"}}]
[{"$f":"IF((LEN('Seguimiento de pérdida de peso'!$C28)=0),TRUE)","v":true},{"$f":"IFERROR(IF(LEN('Seguimiento de pérdida de peso'!$B28)=0,TODAY(),'Seguimiento de pérdida de peso'!$B28),TODAY())","v":"2023-03-30"},{"$f":"IFERROR(IF(A25,0,IF(LEN('Seguimiento de pérdida de peso'!$C28)=0,0,'Seguimiento de pérdida de peso'!$C28)),\"\")","v":0},{"$nulls":4},{"$error":"#N/A"},{"$error":"#N/A"},{"$f":"IFERROR(AVERAGEIFS(Peso[PESO],Peso[FECHA],\">=\"&$H25,Peso[FECHA],\"<=\"&$I25),NA())","v":{"$error":"#N/A"}}]
[{"$f":"IF((LEN('Seguimiento de pérdida de peso'!$C29)=0),TRUE)","v":true},{"$f":"IFERROR(IF(LEN('Seguimiento de pérdida de peso'!$B29)=0,TODAY(),'Seguimiento de pérdida de peso'!$B29),TODAY())","v":"2023-03-30"},{"$f":"IFERROR(IF(A26,0,IF(LEN('Seguimiento de pérdida de peso'!$C29)=0,0,'Seguimiento de pérdida de peso'!$C29)),\"\")","v":0},{"$nulls":4},{"$error":"#N/A"},{"$error":"#N/A"},{"$f":"IFERROR(AVERAGEIFS(Peso[PESO],Peso[FECHA],\">=\"&$H26,Peso[FECHA],\"<=\"&$I26),NA())","v":{"$error":"#N/A"}}]
[{"$f":"IF((LEN('Seguimiento de pérdida de peso'!$C30)=0),TRUE)","v":true},{"$f":"IFERROR(IF(LEN('Seguimiento de pérdida de peso'!$B30)=0,TODAY(),'Seguimiento de pérdida de peso'!$B30),TODAY())","v":"2023-03-30"},{"$f":"IFERROR(IF(A27,0,IF(LEN('Seguimiento de pérdida de peso'!$C30)=0,0,'Seguimiento de pérdida de peso'!$C30)),\"\")","v":0},{"$nulls":4},{"$error":"#N/A"},{"$error":"#N/A"},{"$f":"IFERROR(AVERAGEIFS(Peso[PESO],Peso[FECHA],\">=\"&$H27,Peso[FECHA],\"<=\"&$I27),NA())","v":{"$error":"#N/A"}}]
[{"$f":"IF((LEN('Seguimiento de pérdida de peso'!$C31)=0),TRUE)","v":true},{"$f":"IFERROR(IF(LEN('Seguimiento de pérdida de peso'!$B31)=0,TODAY(),'Seguimiento de pérdida de peso'!$B31),TODAY())","v":"2023-03-30"},{"$f":"IFERROR(IF(A28,0,IF(LEN('Seguimiento de pérdida de peso'!$C31)=0,0,'Seguimiento de pérdida de peso'!$C31)),\"\")","v":0},{"$nulls":4},{"$error":"#N/A"},{"$error":"#N/A"},{"$f":"IFERROR(AVERAGEIFS(Peso[PESO],Peso[FECHA],\">=\"&$H28,Peso[FECHA],\"<=\"&$I28),NA())","v":{"$error":"#N/A"}}]
[{"$f":"IF((LEN('Seguimiento de pérdida de peso'!$C32)=0),TRUE)","v":true},{"$f":"IFERROR(IF(LEN('Seguimiento de pérdida de peso'!$B32)=0,TODAY(),'Seguimiento de pérdida de peso'!$B32),TODAY())","v":"2023-03-30"},{"$f":"IFERROR(IF(A29,0,IF(LEN('Seguimiento de pérdida de peso'!$C32)=0,0,'Seguimiento de pérdida de peso'!$C32)),\"\")","v":0}]
[{"$f":"IF((LEN('Seguimiento de pérdida de peso'!$C33)=0),TRUE)","v":true},{"$f":"IFERROR(IF(LEN('Seguimiento de pérdida de peso'!$B33)=0,TODAY(),'Seguimiento de pérdida de peso'!$B33),TODAY())","v":"2023-03-30"},{"$f":"IFERROR(IF(A30,0,IF(LEN('Seguimiento de pérdida de peso'!$C33)=0,0,'Seguimiento de pérdida de peso'!$C33)),\"\")","v":0}]
[{"$f":"IF((LEN('Seguimiento de pérdida de peso'!$C34)=0),TRUE)","v":true},{"$f":"IFERROR(IF(LEN('Seguimiento de pérdida de peso'!$B34)=0,TODAY(),'Seguimiento de pérdida de peso'!$B34),TODAY())","v":"2023-03-30"},{"$f":"IFERROR(IF(A31,0,IF(LEN('Seguimiento de pérdida de peso'!$C34)=0,0,'Seguimiento de pérdida de peso'!$C34)),\"\")","v":0}]
[{"$f":"IF((LEN('Seguimiento de pérdida de peso'!$C35)=0),TRUE)","v":true},{"$f":"IFERROR(IF(LEN('Seguimiento de pérdida de peso'!$B35)=0,TODAY(),'Seguimiento de pérdida de peso'!$B35),TODAY())","v":"2023-03-30"},{"$f":"IFERROR(IF(A32,0,IF(LEN('Seguimiento de pérdida de peso'!$C35)=0,0,'Seguimiento de pérdida de peso'!$C35)),\"\")","v":0}]
[{"$f":"IF((LEN('Seguimiento de pérdida de peso'!$C36)=0),TRUE)","v":true},{"$f":"IFERROR(IF(LEN('Seguimiento de pérdida de peso'!$B36)=0,TODAY(),'Seguimiento de pérdida de peso'!$B36),TODAY())","v":"2023-03-30"},{"$f":"IFERROR(IF(A33,0,IF(LEN('Seguimiento de pérdida de peso'!$C36)=0,0,'Seguimiento de pérdida de peso'!$C36)),\"\")","v":0}]
[{"$f":"IF((LEN('Seguimiento de pérdida de peso'!$C37)=0),TRUE)","v":true},{"$f":"IFERROR(IF(LEN('Seguimiento de pérdida de peso'!$B37)=0,TODAY(),'Seguimiento de pérdida de peso'!$B37),TODAY())","v":"2023-03-30"},{"$f":"IFERROR(IF(A34,0,IF(LEN('Seguimiento de pérdida de peso'!$C37)=0,0,'Seguimiento de pérdida de peso'!$C37)),\"\")","v":0}]
[{"$f":"IF((LEN('Seguimiento de pérdida de peso'!$C38)=0),TRUE)","v":true},{"$f":"IFERROR(IF(LEN('Seguimiento de pérdida de peso'!$B38)=0,TODAY(),'Seguimiento de pérdida de peso'!$B38),TODAY())","v":"2023-03-30"},{"$f":"IFERROR(IF(A35,0,IF(LEN('Seguimiento de pérdida de peso'!$C38)=0,0,'Seguimiento de pérdida de peso'!$C38)),\"\")","v":0}]
[{"$f":"IF((LEN('Seguimiento de pérdida de peso'!$C39)=0),TRUE)","v":true},{"$f":"IFERROR(IF(LEN('Seguimiento de pérdida de peso'!$B39)=0,TODAY(),'Seguimiento de pérdida de peso'!$B39),TODAY())","v":"2023-03-30"},{"$f":"IFERROR(IF(A36,0,IF(LEN('Seguimiento de pérdida de peso'!$C39)=0,0,'Seguimiento de pérdida de peso'!$C39)),\"\")","v":0}]
[{"$f":"IF((LEN('Seguimiento de pérdida de peso'!$C40)=0),TRUE)","v":true},{"$f":"IFERROR(IF(LEN('Seguimiento de pérdida de peso'!$B40)=0,TODAY(),'Seguimiento de pérdida de peso'!$B40),TODAY())","v":"2023-03-30"},{"$f":"IFERROR(IF(A37,0,IF(LEN('Seguimiento de pérdida de peso'!$C40)=0,0,'Seguimiento de pérdida de peso'!$C40)),\"\")","v":0}]
[{"$f":"IF((LEN('Seguimiento de pérdida de peso'!$C41)=0),TRUE)","v":true},{"$f":"IFERROR(IF(LEN('Seguimiento de pérdida de peso'!$B41)=0,TODAY(),'Seguimiento de pérdida de peso'!$B41),TODAY())","v":"2023-03-30"},{"$f":"IFERROR(IF(A38,0,IF(LEN('Seguimiento de pérdida de peso'!$C41)=0,0,'Seguimiento de pérdida de peso'!$C41)),\"\")","v":0}]
[{"$f":"IF((LEN('Seguimiento de pérdida de peso'!$C42)=0),TRUE)","v":true},{"$f":"IFERROR(IF(LEN('Seguimiento de pérdida de peso'!$B42)=0,TODAY(),'Seguimiento de pérdida de peso'!$B42),TODAY())","v":"2023-03-30"},{"$f":"IFERROR(IF(A39,0,IF(LEN('Seguimiento de pérdida de peso'!$C42)=0,0,'Seguimiento de pérdida de peso'!$C42)),\"\")","v":0}]
[{"$f":"IF((LEN('Seguimiento de pérdida de peso'!$C43)=0),TRUE)","v":true},{"$f":"IFERROR(IF(LEN('Seguimiento de pérdida de peso'!$B43)=0,TODAY(),'Seguimiento de pérdida de peso'!$B43),TODAY())","v":"2023-03-30"},{"$f":"IFERROR(IF(A40,0,IF(LEN('Seguimiento de pérdida de peso'!$C43)=0,0,'Seguimiento de pérdida de peso'!$C43)),\"\")","v":0}]
[{"$f":"IF((LEN('Seguimiento de pérdida de peso'!$C44)=0),TRUE)","v":true},{"$f":"IFERROR(IF(LEN('Seguimiento de pérdida de peso'!$B44)=0,TODAY(),'Seguimiento de pérdida de peso'!$B44),TODAY())","v":"2023-03-30"},{"$f":"IFERROR(IF(A41,0,IF(LEN('Seguimiento de pérdida de peso'!$C44)=0,0,'Seguimiento de pérdida de peso'!$C44)),\"\")","v":0}]
[{"$f":"IF((LEN('Seguimiento de pérdida de peso'!$C45)=0),TRUE)","v":true},{"$f":"IFERROR(IF(LEN('Seguimiento de pérdida de peso'!$B45)=0,TODAY(),'Seguimiento de pérdida de peso'!$B45),TODAY())","v":"2023-03-30"},{"$f":"IFERROR(IF(A42,0,IF(LEN('Seguimiento de pérdida de peso'!$C45)=0,0,'Seguimiento de pérdida de peso'!$C45)),\"\")","v":0}]
[{"$f":"IF((LEN('Seguimiento de pérdida de peso'!$C46)=0),TRUE)","v":true},{"$f":"IFERROR(IF(LEN('Seguimiento de pérdida de peso'!$B46)=0,TODAY(),'Seguimiento de pérdida de peso'!$B46),TODAY())","v":"2023-03-30"},{"$f":"IFERROR(IF(A43,0,IF(LEN('Seguimiento de pérdida de peso'!$C46)=0,0,'Seguimiento de pérdida de peso'!$C46)),\"\")","v":0}]
[{"$f":"IF((LEN('Seguimiento de pérdida de peso'!$C47)=0),TRUE)","v":true},{"$f":"IFERROR(IF(LEN('Seguimiento de pérdida de peso'!$B47)=0,TODAY(),'Seguimiento de pérdida de peso'!$B47),TODAY())","v":"2023-03-30"},{"$f":"IFERROR(IF(A44,0,IF(LEN('Seguimiento de pérdida de peso'!$C47)=0,0,'Seguimiento de pérdida de peso'!$C47)),\"\")","v":0}]
[{"$f":"IF((LEN('Seguimiento de pérdida de peso'!$C48)=0),TRUE)","v":true},{"$f":"IFERROR(IF(LEN('Seguimiento de pérdida de peso'!$B48)=0,TODAY(),'Seguimiento de pérdida de peso'!$B48),TODAY())","v":"2023-03-30"},{"$f":"IFERROR(IF(A45,0,IF(LEN('Seguimiento de pérdida de peso'!$C48)=0,0,'Seguimiento de pérdida de peso'!$C48)),\"\")","v":0}]
[{"$f":"IF((LEN('Seguimiento de pérdida de peso'!$C49)=0),TRUE)","v":true},{"$f":"IFERROR(IF(LEN('Seguimiento de pérdida de peso'!$B49)=0,TODAY(),'Seguimiento de pérdida de peso'!$B49),TODAY())","v":"2023-03-30"},{"$f":"IFERROR(IF(A46,0,IF(LEN('Seguimiento de pérdida de peso'!$C49)=0,0,'Seguimiento de pérdida de peso'!$C49)),\"\")","v":0}]
[{"$f":"IF((LEN('Seguimiento de pérdida de peso'!$C50)=0),TRUE)","v":true},{"$f":"IFERROR(IF(LEN('Seguimiento de pérdida de peso'!$B50)=0,TODAY(),'Seguimiento de pérdida de peso'!$B50),TODAY())","v":"2023-03-30"},{"$f":"IFERROR(IF(A47,0,IF(LEN('Seguimiento de pérdida de peso'!$C50)=0,0,'Seguimiento de pérdida de peso'!$C50)),\"\")","v":0}]
[{"$f":"IF((LEN('Seguimiento de pérdida de peso'!$C51)=0),TRUE)","v":true},{"$f":"IFERROR(IF(LEN('Seguimiento de pérdida de peso'!$B51)=0,TODAY(),'Seguimiento de pérdida de peso'!$B51),TODAY())","v":"2023-03-30"},{"$f":"IFERROR(IF(A48,0,IF(LEN('Seguimiento de pérdida de peso'!$C51)=0,0,'Seguimiento de pérdida de peso'!$C51)),\"\")","v":0}]
[{"$f":"IF((LEN('Seguimiento de pérdida de peso'!$C52)=0),TRUE)","v":true},{"$f":"IFERROR(IF(LEN('Seguimiento de pérdida de peso'!$B52)=0,TODAY(),'Seguimiento de pérdida de peso'!$B52),TODAY())","v":"2023-03-30"},{"$f":"IFERROR(IF(A49,0,IF(LEN('Seguimiento de pérdida de peso'!$C52)=0,0,'Seguimiento de pérdida de peso'!$C52)),\"\")","v":0}]
[{"$f":"IF((LEN('Seguimiento de pérdida de peso'!$C53)=0),TRUE)","v":true},{"$f":"IFERROR(IF(LEN('Seguimiento de pérdida de peso'!$B53)=0,TODAY(),'Seguimiento de pérdida de peso'!$B53),TODAY())","v":"2023-03-30"},{"$f":"IFERROR(IF(A50,0,IF(LEN('Seguimiento de pérdida de peso'!$C53)=0,0,'Seguimiento de pérdida de peso'!$C53)),\"\")","v":0}]
[{"$f":"IF((LEN('Seguimiento de pérdida de peso'!$C54)=0),TRUE)","v":true},{"$f":"IFERROR(IF(LEN('Seguimiento de pérdida de peso'!$B54)=0,TODAY(),'Seguimiento de pérdida de peso'!$B54),TODAY())","v":"2023-03-30"},{"$f":"IFERROR(IF(A51,0,IF(LEN('Seguimiento de pérdida de peso'!$C54)=0,0,'Seguimiento de pérdida de peso'!$C54)),\"\")","v":0}]
[{"$f":"IF((LEN('Seguimiento de pérdida de peso'!$C55)=0),TRUE)","v":true},{"$f":"IFERROR(IF(LEN('Seguimiento de pérdida de peso'!$B55)=0,TODAY(),'Seguimiento de pérdida de peso'!$B55),TODAY())","v":"2023-03-30"},{"$f":"IFERROR(IF(A52,0,IF(LEN('Seguimiento de pérdida de peso'!$C55)=0,0,'Seguimiento de pérdida de peso'!$C55)),\"\")","v":0}]
[{"$f":"IF((LEN('Seguimiento de pérdida de peso'!$C56)=0),TRUE)","v":true},{"$f":"IFERROR(IF(LEN('Seguimiento de pérdida de peso'!$B56)=0,TODAY(),'Seguimiento de pérdida de peso'!$B56),TODAY())","v":"2023-03-30"},{"$f":"IFERROR(IF(A53,0,IF(LEN('Seguimiento de pérdida de peso'!$C56)=0,0,'Seguimiento de pérdida de peso'!$C56)),\"\")","v":0}]
[{"$f":"IF((LEN('Seguimiento de pérdida de peso'!$C57)=0),TRUE)","v":true},{"$f":"IFERROR(IF(LEN('Seguimiento de pérdida de peso'!$B57)=0,TODAY(),'Seguimiento de pérdida de peso'!$B57),TODAY())","v":"2023-03-30"},{"$f":"IFERROR(IF(A54,0,IF(LEN('Seguimiento de pérdida de peso'!$C57)=0,0,'Seguimiento de pérdida de peso'!$C57)),\"\")","v":0}]
[{"$f":"IF((LEN('Seguimiento de pérdida de peso'!$C58)=0),TRUE)","v":true},{"$f":"IFERROR(IF(LEN('Seguimiento de pérdida de peso'!$B58)=0,TODAY(),'Seguimiento de pérdida de peso'!$B58),TODAY())","v":"2023-03-30"},{"$f":"IFERROR(IF(A55,0,IF(LEN('Seguimiento de pérdida de peso'!$C58)=0,0,'Seguimiento de pérdida de peso'!$C58)),\"\")","v":0}]
[{"$f":"IF((LEN('Seguimiento de pérdida de peso'!$C59)=0),TRUE)","v":true},{"$f":"IFERROR(IF(LEN('Seguimiento de pérdida de peso'!$B59)=0,TODAY(),'Seguimiento de pérdida de peso'!$B59),TODAY())","v":"2023-03-30"},{"$f":"IFERROR(IF(A56,0,IF(LEN('Seguimiento de pérdida de peso'!$C59)=0,0,'Seguimiento de pérdida de peso'!$C59)),\"\")","v":0}]
[{"$f":"IF((LEN('Seguimiento de pérdida de peso'!$C60)=0),TRUE)","v":true},{"$f":"IFERROR(IF(LEN('Seguimiento de pérdida de peso'!$B60)=0,TODAY(),'Seguimiento de pérdida de peso'!$B60),TODAY())","v":"2023-03-30"},{"$f":"IFERROR(IF(A57,0,IF(LEN('Seguimiento de pérdida de peso'!$C60)=0,0,'Seguimiento de pérdida de peso'!$C60)),\"\")","v":0}]
[{"$f":"IF((LEN('Seguimiento de pérdida de peso'!$C61)=0),TRUE)","v":true},{"$f":"IFERROR(IF(LEN('Seguimiento de pérdida de peso'!$B61)=0,TODAY(),'Seguimiento de pérdida de peso'!$B61),TODAY())","v":"2023-03-30"},{"$f":"IFERROR(IF(A58,0,IF(LEN('Seguimiento de pérdida de peso'!$C61)=0,0,'Seguimiento de pérdida de peso'!$C61)),\"\")","v":0}]
[{"$f":"IF((LEN('Seguimiento de pérdida de peso'!$C62)=0),TRUE)","v":true},{"$f":"IFERROR(IF(LEN('Seguimiento de pérdida de peso'!$B62)=0,TODAY(),'Seguimiento de pérdida de peso'!$B62),TODAY())","v":"2023-03-30"},{"$f":"IFERROR(IF(A59,0,IF(LEN('Seguimiento de pérdida de peso'!$C62)=0,0,'Seguimiento de pérdida de peso'!$C62)),\"\")","v":0}]
[{"$f":"IF((LEN('Seguimiento de pérdida de peso'!$C63)=0),TRUE)","v":true},{"$f":"IFERROR(IF(LEN('Seguimiento de pérdida de peso'!$B63)=0,TODAY(),'Seguimiento de pérdida de peso'!$B63),TODAY())","v":"2023-03-30"},{"$f":"IFERROR(IF(A60,0,IF(LEN('Seguimiento de pérdida de peso'!$C63)=0,0,'Seguimiento de pérdida de peso'!$C63)),\"\")","v":0}]
[{"$f":"IF((LEN('Seguimiento de pérdida de peso'!$C64)=0),TRUE)","v":true},{"$f":"IFERROR(IF(LEN('Seguimiento de pérdida de peso'!$B64)=0,TODAY(),'Seguimiento de pérdida de peso'!$B64),TODAY())","v":"2023-03-30"},{"$f":"IFERROR(IF(A61,0,IF(LEN('Seguimiento de pérdida de peso'!$C64)=0,0,'Seguimiento de pérdida de peso'!$C64)),\"\")","v":0}]
[{"$f":"IF((LEN('Seguimiento de pérdida de peso'!$C65)=0),TRUE)","v":true},{"$f":"IFERROR(IF(LEN('Seguimiento de pérdida de peso'!$B65)=0,TODAY(),'Seguimiento de pérdida de peso'!$B65),TODAY())","v":"2023-03-30"},{"$f":"IFERROR(IF(A62,0,IF(LEN('Seguimiento de pérdida de peso'!$C65)=0,0,'Seguimiento de pérdida de peso'!$C65)),\"\")","v":0}]
[{"$f":"IF((LEN('Seguimiento de pérdida de peso'!$C66)=0),TRUE)","v":true},{"$f":"IFERROR(IF(LEN('Seguimiento de pérdida de peso'!$B66)=0,TODAY(),'Seguimiento de pérdida de peso'!$B66),TODAY())","v":"2023-03-30"},{"$f":"IFERROR(IF(A63,0,IF(LEN('Seguimiento de pérdida de peso'!$C66)=0,0,'Seguimiento de pérdida de peso'!$C66)),\"\")","v":0}]
[{"$f":"IF((LEN('Seguimiento de pérdida de peso'!$C67)=0),TRUE)","v":true},{"$f":"IFERROR(IF(LEN('Seguimiento de pérdida de peso'!$B67)=0,TODAY(),'Seguimiento de pérdida de peso'!$B67),TODAY())","v":"2023-03-30"},{"$f":"IFERROR(IF(A64,0,IF(LEN('Seguimiento de pérdida de peso'!$C67)=0,0,'Seguimiento de pérdida de peso'!$C67)),\"\")","v":0}]
[{"$f":"IF((LEN('Seguimiento de pérdida de peso'!$C68)=0),TRUE)","v":true},{"$f":"IFERROR(IF(LEN('Seguimiento de pérdida de peso'!$B68)=0,TODAY(),'Seguimiento de pérdida de peso'!$B68),TODAY())","v":"2023-03-30"},{"$f":"IFERROR(IF(A65,0,IF(LEN('Seguimiento de pérdida de peso'!$C68)=0,0,'Seguimiento de pérdida de peso'!$C68)),\"\")","v":0}]
[{"$f":"IF((LEN('Seguimiento de pérdida de peso'!$C69)=0),TRUE)","v":true},{"$f":"IFERROR(IF(LEN('Seguimiento de pérdida de peso'!$B69)=0,TODAY(),'Seguimiento de pérdida de peso'!$B69),TODAY())","v":"2023-03-30"},{"$f":"IFERROR(IF(A66,0,IF(LEN('Seguimiento de pérdida de peso'!$C69)=0,0,'Seguimiento de pérdida de peso'!$C69)),\"\")","v":0}]
[{"$f":"IF((LEN('Seguimiento de pérdida de peso'!$C70)=0),TRUE)","v":true},{"$f":"IFERROR(IF(LEN('Seguimiento de pérdida de peso'!$B70)=0,TODAY(),'Seguimiento de pérdida de peso'!$B70),TODAY())","v":"2023-03-30"},{"$f":"IFERROR(IF(A67,0,IF(LEN('Seguimiento de pérdida de peso'!$C70)=0,0,'Seguimiento de pérdida de peso'!$C70)),\"\")","v":0}]
[{"$f":"IF((LEN('Seguimiento de pérdida de peso'!$C71)=0),TRUE)","v":true},{"$f":"IFERROR(IF(LEN('Seguimiento de pérdida de peso'!$B71)=0,TODAY(),'Seguimiento de pérdida de peso'!$B71),TODAY())","v":"2023-03-30"},{"$f":"IFERROR(IF(A68,0,IF(LEN('Seguimiento de pérdida de peso'!$C71)=0,0,'Seguimiento de pérdida de peso'!$C71)),\"\")","v":0}]
[{"$f":"IF((LEN('Seguimiento de pérdida de peso'!$C72)=0),TRUE)","v":true},{"$f":"IFERROR(IF(LEN('Seguimiento de pérdida de peso'!$B72)=0,TODAY(),'Seguimiento de pérdida de peso'!$B72),TODAY())","v":"2023-03-30"},{"$f":"IFERROR(IF(A69,0,IF(LEN('Seguimiento de pérdida de peso'!$C72)=0,0,'Seguimiento de pérdida de peso'!$C72)),\"\")","v":0}]
[{"$f":"IF((LEN('Seguimiento de pérdida de peso'!$C73)=0),TRUE)","v":true},{"$f":"IFERROR(IF(LEN('Seguimiento de pérdida de peso'!$B73)=0,TODAY(),'Seguimiento de pérdida de peso'!$B73),TODAY())","v":"2023-03-30"},{"$f":"IFERROR(IF(A70,0,IF(LEN('Seguimiento de pérdida de peso'!$C73)=0,0,'Seguimiento de pérdida de peso'!$C73)),\"\")","v":0}]
[{"$f":"IF((LEN('Seguimiento de pérdida de peso'!$C74)=0),TRUE)","v":true},{"$f":"IFERROR(IF(LEN('Seguimiento de pérdida de peso'!$B74)=0,TODAY(),'Seguimiento de pérdida de peso'!$B74),TODAY())","v":"2023-03-30"},{"$f":"IFERROR(IF(A71,0,IF(LEN('Seguimiento de pérdida de peso'!$C74)=0,0,'Seguimiento de pérdida de peso'!$C74)),\"\")","v":0}]
[{"$f":"IF((LEN('Seguimiento de pérdida de peso'!$C75)=0),TRUE)","v":true},{"$f":"IFERROR(IF(LEN('Seguimiento de pérdida de peso'!$B75)=0,TODAY(),'Seguimiento de pérdida de peso'!$B75),TODAY())","v":"2023-03-30"},{"$f":"IFERROR(IF(A72,0,IF(LEN('Seguimiento de pérdida de peso'!$C75)=0,0,'Seguimiento de pérdida de peso'!$C75)),\"\")","v":0}]
[{"$f":"IF((LEN('Seguimiento de pérdida de peso'!$C76)=0),TRUE)","v":true},{"$f":"IFERROR(IF(LEN('Seguimiento de pérdida de peso'!$B76)=0,TODAY(),'Seguimiento de pérdida de peso'!$B76),TODAY())","v":"2023-03-30"},{"$f":"IFERROR(IF(A73,0,IF(LEN('Seguimiento de pérdida de peso'!$C76)=0,0,'Seguimiento de pérdida de peso'!$C76)),\"\")","v":0}]
[{"$f":"IF((LEN('Seguimiento de pérdida de peso'!$C77)=0),TRUE)","v":true},{"$f":"IFERROR(IF(LEN('Seguimiento de pérdida de peso'!$B77)=0,TODAY(),'Seguimiento de pérdida de peso'!$B77),TODAY())","v":"2023-03-30"},{"$f":"IFERROR(IF(A74,0,IF(LEN('Seguimiento de pérdida de peso'!$C77)=0,0,'Seguimiento de pérdida de peso'!$C77)),\"\")","v":0}]
[{"$f":"IF((LEN('Seguimiento de pérdida de peso'!$C78)=0),TRUE)","v":true},{"$f":"IFERROR(IF(LEN('Seguimiento de pérdida de peso'!$B78)=0,TODAY(),'Seguimiento de pérdida de peso'!$B78),TODAY())","v":"2023-03-30"},{"$f":"IFERROR(IF(A75,0,IF(LEN('Seguimiento de pérdida de peso'!$C78)=0,0,'Seguimiento de pérdida de peso'!$C78)),\"\")","v":0}]
[{"$f":"IF((LEN('Seguimiento de pérdida de peso'!$C79)=0),TRUE)","v":true},{"$f":"IFERROR(IF(LEN('Seguimiento de pérdida de peso'!$B79)=0,TODAY(),'Seguimiento de pérdida de peso'!$B79),TODAY())","v":"2023-03-30"},{"$f":"IFERROR(IF(A76,0,IF(LEN('Seguimiento de pérdida de peso'!$C79)=0,0,'Seguimiento de pérdida de peso'!$C79)),\"\")","v":0}]
[{"$f":"IF((LEN('Seguimiento de pérdida de peso'!$C80)=0),TRUE)","v":true},{"$f":"IFERROR(IF(LEN('Seguimiento de pérdida de peso'!$B80)=0,TODAY(),'Seguimiento de pérdida de peso'!$B80),TODAY())","v":"2023-03-30"},{"$f":"IFERROR(IF(A77,0,IF(LEN('Seguimiento de pérdida de peso'!$C80)=0,0,'Seguimiento de pérdida de peso'!$C80)),\"\")","v":0}]
[{"$f":"IF((LEN('Seguimiento de pérdida de peso'!$C81)=0),TRUE)","v":true},{"$f":"IFERROR(IF(LEN('Seguimiento de pérdida de peso'!$B81)=0,TODAY(),'Seguimiento de pérdida de peso'!$B81),TODAY())","v":"2023-03-30"},{"$f":"IFERROR(IF(A78,0,IF(LEN('Seguimiento de pérdida de peso'!$C81)=0,0,'Seguimiento de pérdida de peso'!$C81)),\"\")","v":0}]
[{"$f":"IF((LEN('Seguimiento de pérdida de peso'!$C82)=0),TRUE)","v":true},{"$f":"IFERROR(IF(LEN('Seguimiento de pérdida de peso'!$B82)=0,TODAY(),'Seguimiento de pérdida de peso'!$B82),TODAY())","v":"2023-03-30"},{"$f":"IFERROR(IF(A79,0,IF(LEN('Seguimiento de pérdida de peso'!$C82)=0,0,'Seguimiento de pérdida de peso'!$C82)),\"\")","v":0}]
[{"$f":"IF((LEN('Seguimiento de pérdida de peso'!$C83)=0),TRUE)","v":true},{"$f":"IFERROR(IF(LEN('Seguimiento de pérdida de peso'!$B83)=0,TODAY(),'Seguimiento de pérdida de peso'!$B83),TODAY())","v":"2023-03-30"},{"$f":"IFERROR(IF(A80,0,IF(LEN('Seguimiento de pérdida de peso'!$C83)=0,0,'Seguimiento de pérdida de peso'!$C83)),\"\")","v":0}]
[{"$f":"IF((LEN('Seguimiento de pérdida de peso'!$C84)=0),TRUE)","v":true},{"$f":"IFERROR(IF(LEN('Seguimiento de pérdida de peso'!$B84)=0,TODAY(),'Seguimiento de pérdida de peso'!$B84),TODAY())","v":"2023-03-30"},{"$f":"IFERROR(IF(A81,0,IF(LEN('Seguimiento de pérdida de peso'!$C84)=0,0,'Seguimiento de pérdida de peso'!$C84)),\"\")","v":0}]
[{"$f":"IF((LEN('Seguimiento de pérdida de peso'!$C85)=0),TRUE)","v":true},{"$f":"IFERROR(IF(LEN('Seguimiento de pérdida de peso'!$B85)=0,TODAY(),'Seguimiento de pérdida de peso'!$B85),TODAY())","v":"2023-03-30"},{"$f":"IFERROR(IF(A82,0,IF(LEN('Seguimiento de pérdida de peso'!$C85)=0,0,'Seguimiento de pérdida de peso'!$C85)),\"\")","v":0}]
[{"$f":"IF((LEN('Seguimiento de pérdida de peso'!$C86)=0),TRUE)","v":true},{"$f":"IFERROR(IF(LEN('Seguimiento de pérdida de peso'!$B86)=0,TODAY(),'Seguimiento de pérdida de peso'!$B86),TODAY())","v":"2023-03-30"},{"$f":"IFERROR(IF(A83,0,IF(LEN('Seguimiento de pérdida de peso'!$C86)=0,0,'Seguimiento de pérdida de peso'!$C86)),\"\")","v":0}]
[{"$f":"IF((LEN('Seguimiento de pérdida de peso'!$C87)=0),TRUE)","v":true},{"$f":"IFERROR(IF(LEN('Seguimiento de pérdida de peso'!$B87)=0,TODAY(),'Seguimiento de pérdida de peso'!$B87),TODAY())","v":"2023-03-30"},{"$f":"IFERROR(IF(A84,0,IF(LEN('Seguimiento de pérdida de peso'!$C87)=0,0,'Seguimiento de pérdida de peso'!$C87)),\"\")","v":0}]
[{"$f":"IF((LEN('Seguimiento de pérdida de peso'!$C88)=0),TRUE)","v":true},{"$f":"IFERROR(IF(LEN('Seguimiento de pérdida de peso'!$B88)=0,TODAY(),'Seguimiento de pérdida de peso'!$B88),TODAY())","v":"2023-03-30"},{"$f":"IFERROR(IF(A85,0,IF(LEN('Seguimiento de pérdida de peso'!$C88)=0,0,'Seguimiento de pérdida de peso'!$C88)),\"\")","v":0}]
[{"$f":"IF((LEN('Seguimiento de pérdida de peso'!$C89)=0),TRUE)","v":true},{"$f":"IFERROR(IF(LEN('Seguimiento de pérdida de peso'!$B89)=0,TODAY(),'Seguimiento de pérdida de peso'!$B89),TODAY())","v":"2023-03-30"},{"$f":"IFERROR(IF(A86,0,IF(LEN('Seguimiento de pérdida de peso'!$C89)=0,0,'Seguimiento de pérdida de peso'!$C89)),\"\")","v":0}]
[{"$f":"IF((LEN('Seguimiento de pérdida de peso'!$C90)=0),TRUE)","v":true},{"$f":"IFERROR(IF(LEN('Seguimiento de pérdida de peso'!$B90)=0,TODAY(),'Seguimiento de pérdida de peso'!$B90),TODAY())","v":"2023-03-30"},{"$f":"IFERROR(IF(A87,0,IF(LEN('Seguimiento de pérdida de peso'!$C90)=0,0,'Seguimiento de pérdida de peso'!$C90)),\"\")","v":0}]
[{"$f":"IF((LEN('Seguimiento de pérdida de peso'!$C91)=0),TRUE)","v":true},{"$f":"IFERROR(IF(LEN('Seguimiento de pérdida de peso'!$B91)=0,TODAY(),'Seguimiento de pérdida de peso'!$B91),TODAY())","v":"2023-03-30"},{"$f":"IFERROR(IF(A88,0,IF(LEN('Seguimiento de pérdida de peso'!$C91)=0,0,'Seguimiento de pérdida de peso'!$C91)),\"\")","v":0}]
[{"$f":"IF((LEN('Seguimiento de pérdida de peso'!$C92)=0),TRUE)","v":true},{"$f":"IFERROR(IF(LEN('Seguimiento de pérdida de peso'!$B92)=0,TODAY(),'Seguimiento de pérdida de peso'!$B92),TODAY())","v":"2023-03-30"},{"$f":"IFERROR(IF(A89,0,IF(LEN('Seguimiento de pérdida de peso'!$C92)=0,0,'Seguimiento de pérdida de peso'!$C92)),\"\")","v":0}]
[{"$f":"IF((LEN('Seguimiento de pérdida de peso'!$C93)=0),TRUE)","v":true},{"$f":"IFERROR(IF(LEN('Seguimiento de pérdida de peso'!$B93)=0,TODAY(),'Seguimiento de pérdida de peso'!$B93),TODAY())","v":"2023-03-30"},{"$f":"IFERROR(IF(A90,0,IF(LEN('Seguimiento de pérdida de peso'!$C93)=0,0,'Seguimiento de pérdida de peso'!$C93)),\"\")","v":0}]
[{"$f":"IF((LEN('Seguimiento de pérdida de peso'!$C94)=0),TRUE)","v":true},{"$f":"IFERROR(IF(LEN('Seguimiento de pérdida de peso'!$B94)=0,TODAY(),'Seguimiento de pérdida de peso'!$B94),TODAY())","v":"2023-03-30"},{"$f":"IFERROR(IF(A91,0,IF(LEN('Seguimiento de pérdida de peso'!$C94)=0,0,'Seguimiento de pérdida de peso'!$C94)),\"\")","v":0}]
[{"$f":"IF((LEN('Seguimiento de pérdida de peso'!$C95)=0),TRUE)","v":true},{"$f":"IFERROR(IF(LEN('Seguimiento de pérdida de peso'!$B95)=0,TODAY(),'Seguimiento de pérdida de peso'!$B95),TODAY())","v":"2023-03-30"},{"$f":"IFERROR(IF(A92,0,IF(LEN('Seguimiento de pérdida de peso'!$C95)=0,0,'Seguimiento de pérdida de peso'!$C95)),\"\")","v":0}]
[{"$f":"IF((LEN('Seguimiento de pérdida de peso'!$C96)=0),TRUE)","v":true},{"$f":"IFERROR(IF(LEN('Seguimiento de pérdida de peso'!$B96)=0,TODAY(),'Seguimiento de pérdida de peso'!$B96),TODAY())","v":"2023-03-30"},{"$f":"IFERROR(IF(A93,0,IF(LEN('Seguimiento de pérdida de peso'!$C96)=0,0,'Seguimiento de pérdida de peso'!$C96)),\"\")","v":0}]
[{"$f":"IF((LEN('Seguimiento de pérdida de peso'!$C97)=0),TRUE)","v":true},{"$f":"IFERROR(IF(LEN('Seguimiento de pérdida de peso'!$B97)=0,TODAY(),'Seguimiento de pérdida de peso'!$B97),TODAY())","v":"2023-03-30"},{"$f":"IFERROR(IF(A94,0,IF(LEN('Seguimiento de pérdida de peso'!$C97)=0,0,'Seguimiento de pérdida de peso'!$C97)),\"\")","v":0}]
[{"$f":"IF((LEN('Seguimiento de pérdida de peso'!$C98)=0),TRUE)","v":true},{"$f":"IFERROR(IF(LEN('Seguimiento de pérdida de peso'!$B98)=0,TODAY(),'Seguimiento de pérdida de peso'!$B98),TODAY())","v":"2023-03-30"},{"$f":"IFERROR(IF(A95,0,IF(LEN('Seguimiento de pérdida de peso'!$C98)=0,0,'Seguimiento de pérdida de peso'!$C98)),\"\")","v":0}]
[{"$f":"IF((LEN('Seguimiento de pérdida de peso'!$C99)=0),TRUE)","v":true},{"$f":"IFERROR(IF(LEN('Seguimiento de pérdida de peso'!$B99)=0,TODAY(),'Seguimiento de pérdida de peso'!$B99),TODAY())","v":"2023-03-30"},{"$f":"IFERROR(IF(A96,0,IF(LEN('Seguimiento de pérdida de peso'!$C99)=0,0,'Seguimiento de pérdida de peso'!$C99)),\"\")","v":0}]
[{"$f":"IF((LEN('Seguimiento de pérdida de peso'!$C100)=0),TRUE)","v":true},{"$f":"IFERROR(IF(LEN('Seguimiento de pérdida de peso'!$B100)=0,TODAY(),'Seguimiento de pérdida de peso'!$B100),TODAY())","v":"2023-03-30"},{"$f":"IFERROR(IF(A97,0,IF(LEN('Seguimiento de pérdida de peso'!$C100)=0,0,'Seguimiento de pérdida de peso'!$C100)),\"\")","v":0}]
[{"$f":"IF((LEN('Seguimiento de pérdida de peso'!$C101)=0),TRUE)","v":true},{"$f":"IFERROR(IF(LEN('Seguimiento de pérdida de peso'!$B101)=0,TODAY(),'Seguimiento de pérdida de peso'!$B101),TODAY())","v":"2023-03-30"},{"$f":"IFERROR(IF(A98,0,IF(LEN('Seguimiento de pérdida de peso'!$C101)=0,0,'Seguimiento de pérdida de peso'!$C101)),\"\")","v":0}]
[{"$f":"IF((LEN('Seguimiento de pérdida de peso'!$C102)=0),TRUE)","v":true},{"$f":"IFERROR(IF(LEN('Seguimiento de pérdida de peso'!$B102)=0,TODAY(),'Seguimiento de pérdida de peso'!$B102),TODAY())","v":"2023-03-30"},{"$f":"IFERROR(IF(A99,0,IF(LEN('Seguimiento de pérdida de peso'!$C102)=0,0,'Seguimiento de pérdida de peso'!$C102)),\"\")","v":0}]
[{"$f":"IF((LEN('Seguimiento de pérdida de peso'!$C103)=0),TRUE)","v":true},{"$f":"IFERROR(IF(LEN('Seguimiento de pérdida de peso'!$B103)=0,TODAY(),'Seguimiento de pérdida de peso'!$B103),TODAY())","v":"2023-03-30"},{"$f":"IFERROR(IF(A100,0,IF(LEN('Seguimiento de pérdida de peso'!$C103)=0,0,'Seguimiento de pérdida de peso'!$C103)),\"\")","v":0}]
[{"$f":"IF((LEN('Seguimiento de pérdida de peso'!$C104)=0),TRUE)","v":true},{"$f":"IFERROR(IF(LEN('Seguimiento de pérdida de peso'!$B104)=0,TODAY(),'Seguimiento de pérdida de peso'!$B104),TODAY())","v":"2023-03-30"},{"$f":"IFERROR(IF(A101,0,IF(LEN('Seguimiento de pérdida de peso'!$C104)=0,0,'Seguimiento de pérdida de peso'!$C104)),\"\")","v":0}]
[{"$f":"IF((LEN('Seguimiento de pérdida de peso'!$C105)=0),TRUE)","v":true},{"$f":"IFERROR(IF(LEN('Seguimiento de pérdida de peso'!$B105)=0,TODAY(),'Seguimiento de pérdida de peso'!$B105),TODAY())","v":"2023-03-30"},{"$f":"IFERROR(IF(A102,0,IF(LEN('Seguimiento de pérdida de peso'!$C105)=0,0,'Seguimiento de pérdida de peso'!$C105)),\"\")","v":0}]
[{"$f":"IF((LEN('Seguimiento de pérdida de peso'!$C106)=0),TRUE)","v":true},{"$f":"IFERROR(IF(LEN('Seguimiento de pérdida de peso'!$B106)=0,TODAY(),'Seguimiento de pérdida de peso'!$B106),TODAY())","v":"2023-03-30"},{"$f":"IFERROR(IF(A103,0,IF(LEN('Seguimiento de pérdida de peso'!$C106)=0,0,'Seguimiento de pérdida de peso'!$C106)),\"\")","v":0}]
[{"$f":"IF((LEN('Seguimiento de pérdida de peso'!$C107)=0),TRUE)","v":true},{"$f":"IFERROR(IF(LEN('Seguimiento de pérdida de peso'!$B107)=0,TODAY(),'Seguimiento de pérdida de peso'!$B107),TODAY())","v":"2023-03-30"},{"$f":"IFERROR(IF(A104,0,IF(LEN('Seguimiento de pérdida de peso'!$C107)=0,0,'Seguimiento de pérdida de peso'!$C107)),\"\")","v":0}]
[{"$f":"IF((LEN('Seguimiento de pérdida de peso'!$C108)=0),TRUE)","v":true},{"$f":"IFERROR(IF(LEN('Seguimiento de pérdida de peso'!$B108)=0,TODAY(),'Seguimiento de pérdida de peso'!$B108),TODAY())","v":"2023-03-30"},{"$f":"IFERROR(IF(A105,0,IF(LEN('Seguimiento de pérdida de peso'!$C108)=0,0,'Seguimiento de pérdida de peso'!$C108)),\"\")","v":0}]
[{"$f":"IF((LEN('Seguimiento de pérdida de peso'!$C109)=0),TRUE)","v":true},{"$f":"IFERROR(IF(LEN('Seguimiento de pérdida de peso'!$B109)=0,TODAY(),'Seguimiento de pérdida de peso'!$B109),TODAY())","v":"2023-03-30"},{"$f":"IFERROR(IF(A106,0,IF(LEN('Seguimiento de pérdida de peso'!$C109)=0,0,'Seguimiento de pérdida de peso'!$C109)),\"\")","v":0}]
[{"$f":"IF((LEN('Seguimiento de pérdida de peso'!$C110)=0),TRUE)","v":true},{"$f":"IFERROR(IF(LEN('Seguimiento de pérdida de peso'!$B110)=0,TODAY(),'Seguimiento de pérdida de peso'!$B110),TODAY())","v":"2023-03-30"},{"$f":"IFERROR(IF(A107,0,IF(LEN('Seguimiento de pérdida de peso'!$C110)=0,0,'Seguimiento de pérdida de peso'!$C110)),\"\")","v":0}]